[Event "26th Womens ECCC 2022"]
[Site "Mayrhofen"]
[Date "2022.10.08"]
[Round "6.19"]
[White "Heinemann, Josefine"]
[Black "Orian, Noga"]
[Result "1-0"]
[ECO "B51"]
[WhiteElo "2318"]
[BlackElo "1940"]
[Annotator "TA"]
[PlyCount "133"]
[EventDate "2022.10.03"]
[EventType "team-tourn"]
[EventCountry "AUT"]
[SourceTitle "playchess.com"]
[Source "ChessBase"]
[SourceQuality "1"]
[TimeControl "40/5400+30:1800+30"]

{[%evp 9,133,8,18,17,17,15,49,33,54,48,58,36,36,35,33,29,43,42,54,0,0,8,43,43,43,43,43,43,43,43,43,43,43,44,44,44,44,44,44,44,44,44,101,100,115,100,100,101,101,100,129,129,129,114,111,115,122,122,122,115,115,115,115,108,108,116,123,102,104,59,145,141,182,183,179,182,190,190,190,190,190,190,190,190,190,48,49,42,47,56,102,65,291,294,396,180,455,283,441,441,472,453,456,445,571,552,504,485,700,662,1130,1031,3644,2351,6087,5958,2441,1954,29971,5945,29986,29987,29989,29990,29990,29991]} 1. e4 {[%emt 0:00:03]} c5 {[%emt 0:00:03]} 2. Nf3 {[%emt 0:00:05]} d6 {[%emt 0:00:04]} 3. Bb5+ {[%emt 0:00:06]} Nd7 {[%emt 0:00:08]} 4. a4 {[%emt 0:00:24]} Ngf6 {[%emt 0:00:24]} 5. Nc3 {[%emt 0:00:07]} a6 {[%emt 0:00:10]} 6. Be2 {[%emt 0:00:31] B51: Sicilian: Moscow Variation (3 Bb5+) without 3...Bd7.} b6 {[%emt 0:03:01]} 7. d4 {[%emt 0:01:13]} e6 {[%emt 0:04:58]} 8. O-O {[%emt 0:06:29] [#] White is slightly better.} Bb7 $146 {[%emt 0:06:00]} ({Predecessor:} 8... cxd4 9. Qxd4 Bb7 10. Rd1 Qc7 11. Be3 Be7 12. Nd2 Nc5 13. b4 Ncd7 14. Nc4 O-O {1-0 (36) Giri,A (2783)-Tsydypov,Z (2529) St Petersburg 2018}) 9. d5 $1 {[%emt 0:03:09]} exd5 {[%emt 0:00:58]} 10. exd5 {[%emt 0:00:14]} Be7 {[%emt 0:00:09]} 11. h3 {[%emt 0:09:00]} O-O {[%emt 0:01:40]} 12. Bf4 {[%emt 0:00:56]} Re8 {[%emt 0:07:46]} 13. Bc4 {[%emt 0:13:02]} Bf8 {[%emt 0:07:51]} 14. Re1 {[%emt 0:03:55]} (14. Qd3 $14) 14... Rxe1+ $11 {[%emt 0:05:34]} 15. Qxe1 {[%emt 0:00:08]} Qc7 {[%emt 0:00:33]} (15... b5 $5 16. axb5 axb5 17. Rxa8 (17. Nxb5 Nb6 $11) 17... Bxa8 18. Nxb5 (18. Bxb5 Nxd5 19. Nxd5 Bxd5 $11) 18... Nb6 $11) 16. Bh2 {[%emt 0:07:44]} Re8 {[%emt 0:00:37]} 17. Qf1 {[%emt 0:00:18]} Qc8 {[%emt 0:02:50]} 18. Qd3 {[%emt 0:04:49]} Qa8 {[%emt 0:05:42]} 19. Rd1 {[%emt 0:05:27]} g6 {[%emt 0:12:02]} 20. b3 {[%emt 0:00:51]} Kg7 {[%emt 0:07:01]} 21. Kf1 {[%emt 0:06:00]} Kg8 {[%emt 0:03:26]} 22. g4 {[%emt 0:07:47]} h6 {[%emt 0:08:12]} 23. Bg3 {[%emt 0:00:11]} Qc8 {[%emt 0:01:11]} 24. Kg1 {[%emt 0:01:58]} Kg7 {[%emt 0:11:22]} 25. Kh2 {[%emt 0:00:43]} Ne5 {[%emt 0:03:27]} (25... Kg8 $14) 26. Nxe5 $16 {[%emt 0:00:38]} dxe5 {[%emt 0:00:02]} 27. f3 {[%emt 0:02:17]} Bd6 {[%emt 0:00:26]} 28. Ne4 {[%emt 0:00:42]} Nxe4 {[%emt 0:00:47]} 29. fxe4 {[%emt 0:00:46]} g5 {[%emt 0:02:32]} 30. Rf1 {[%emt 0:02:06]} f6 {[%emt 0:01:02]} 31. Rf5 {[%emt 0:04:04]} Rf8 {[%emt 0:04:12]} 32. Kg2 {[%emt 0:00:14]} Qa8 {[%emt 0:00:49]} 33. Be1 {[%emt 0:01:53][%cal Bg3e1,Be1d2,Bd2e3][%mdl 32] White is more active.} Bc8 {[%emt 0:00:26]} 34. Rf2 {[%emt 0:00:18]} Qb7 {[%emt 0:01:01]} 35. Bd2 {[%emt 0:01:03]} Rh8 {[%emt 0:00:50]} 36. Qf1 {[%emt 0:02:05]} Rf8 {[%emt 0:00:37]} 37. Rf3 {[%emt 0:00:22]} Qa7 {[%emt 0:00:30]} 38. Be3 {[%emt 0:00:59]} a5 {[%emt 0:00:32]} 39. Kf2 {[%emt 0:00:12][%cal Bg2f2,Bf2e2,Be2d3,Bd3c4][%mdl 32]} Bd7 {[%emt 0:00:30]} (39... h5 $14) 40. Bb5 {[%emt 0:02:49]} Bxb5 {[%emt 0:00:32]} 41. Qxb5 {[%emt 0:30:07]} Qc7 {[%emt 0:07:14]} 42. Ke2 {[%emt 0:00:00]} Rb8 {[%emt 0:01:25]} 43. Kd3 {[%emt 0:00:00]} Be7 {[%emt 0:05:32]} 44. Kc4 {[%emt 0:00:00]} Qa7 {[%emt 0:01:46]} 45. Bd2 {[%emt 0:00:00]} Rc8 {[%emt 0:05:15]} 46. Be1 {[%emt 0:00:00]} Qc7 {[%emt 0:01:44]} 47. Qc6 {[%emt 0:00:00]} ({Better is} 47. Rf5 $18) 47... Qxc6 $14 {[%emt 0:02:40]} 48. dxc6 {[%emt 0:00:00]} Rxc6 {[%emt 0:00:04][%mdl 4096] Endgame KRB-KRB} 49. Rd3 {[%emt 0:00:00]} Rc7 {[%emt 0:00:29]} (49... Kf8 $14 {might be stronger.}) 50. Rd5 {[%emt 0:00:00][%mdl 1024] [#] Strongly threatening Kb5. White has strong compensation.} Rc8 $2 {[%emt 0:03:11] Black cannot hold the game after this.} (50... Rc6 $1 $14) 51. Kb5 $18 {[%emt 0:00:00]} (51. Rd7 Kf7 $16) 51... Bd8 {[%emt 0:01:05]} 52. c4 {[%emt 0:00:00]} (52. Ka6 $142) 52... h5 $2 {[%emt 0:00:38]} (52... Kf7) 53. Ka6 {[%emt 0:00:00] aiming for Rd7+.} hxg4 {[%emt 0:00:36]} (53... Be7 $142 54. gxh5 (54. Rd7 hxg4 55. hxg4 Kf7 $16) 54... Kf7 55. Kxb6 Rh8) 54. hxg4 {[%emt 0:00:00] [#] Threatens to win with Rd7+.} Be7 {[%emt 0:03:05]} 55. Rd7 {[%emt 0:00:00]} Kf8 {[%emt 0:01:09]} 56. Kxb6 {[%emt 0:00:26]} Rb8+ {[%emt 0:00:19]} 57. Rb7 {[%emt 0:01:24]} Rd8 {[%emt 0:00:09]} 58. Bxa5 {[%emt 0:00:32]} Rd3 {[%emt 0:01:05]} (58... f5 $142 59. exf5 Rd3) 59. Kc6 {[%emt 0:00:46]} Rd4 {[%emt 0:00:32]} 60. Bc7 {[%emt 0:01:53] Hoping for a5.} Rxe4 {[%emt 0:01:22]} 61. a5 {[%emt 0:00:11][%cal Ba4a5,Ba5a6][%mdl 32] Intending a6 and mate.} Re1 {[%emt 0:01:02]} 62. a6 {[%emt 0:00:05] White wants to mate with Ba5.} Ra1 {[%emt 0:00:39] Against Ba5} 63. a7 {[%emt 0:00:04]} Kf7 {[%emt 0:00:30]} 64. Bd8 {[%emt 0:01:24]} Ra6+ {[%emt 0:00:31]} 65. Kb5 {[%emt 0:00:23] White mates.} Ra3 {[%emt 0:00:27]} 66. Rxe7+ {[%emt 0:00:19]} Kg6 {[%emt 0:00:26]} 67. Ba5 {[%emt 0:00:05] Weighted Error Value: White=0.17 (very precise) /Black=0.27 (precise)} 1-0

[Event "26th Womens ECCC 2022"]
[Site "Mayrhofen"]
[Date "2022.10.08"]
[Round "6.20"]
[White "Golovchanskaya, Alina"]
[Black "Trippold, Denise"]
[Result "0-1"]
[ECO "E15"]
[WhiteElo "1684"]
[BlackElo "2146"]
[Annotator "TA"]
[PlyCount "78"]
[EventDate "2022.10.03"]
[EventType "team-tourn"]
[EventCountry "AUT"]
[SourceTitle "playchess.com"]
[Source "ChessBase"]
[SourceQuality "1"]
[TimeControl "40/5400+30:1800+30"]

{[%evp 12,77,4,0,25,31,42,18,23,8,24,20,18,0,0,-15,-21,-16,0,-5,-11,-9,153,153,141,72,107,105,121,122,124,52,58,53,68,4,44,25,33,29,254,235,245,219,258,22,33,-130,-117,-127,-147,-364,-358,-522,0,0,0,0,0,0,0,0,0,-658,0,-29998,-29999,-29999]} 1. d4 {[%emt 0:00:04]} Nf6 {[%emt 0:00:09]} 2. c4 {[%emt 0:00:06]} e6 {[%emt 0:00:05]} 3. Nf3 {[%emt 0:00:10]} b6 {[%emt 0:00:41]} 4. g3 {[%emt 0:00:53]} Ba6 {[%emt 0:00:44]} 5. Nbd2 {[%emt 0:00:17]} Bb4 {[%emt 0:02:25]} 6. Qc2 {[%emt 0:01:43]} O-O {[%emt 0:02:42]} 7. Bg2 {[%emt 0:00:28]} c6 {[%emt 0:04:18] E15: Queen's Indian: 4 g3 sidelines, 4 g3 Ba6 and 4 g3 Bb7 early deviations.} 8. O-O {[%emt 0:03:40]} d5 {[%emt 0:00:38]} 9. b3 {[%emt 0:03:55] 9.b3 scores better than 9.Rd1.} Nbd7 {[%emt 0:03:36] The position is equal.} 10. Bb2 {[%emt 0:06:22]} Rc8 {[%emt 0:04:08]} 11. e4 {[%emt 0:08:56][%cal Be2e4,Be4d5][%mdl 32]} c5 {[%emt 0:19:42] [#]} 12. Rfd1 $146 {[%emt 0:13:22]} ({Predecessor:} 12. exd5 exd5 13. Rfd1 cxd4 14. Nxd4 b5 15. a3 Be7 16. Qf5 bxc4 17. bxc4 g6 18. Qg5 {1-0 (36) Ajay,K (2315)-Ostojic,N (2395) Arandjelovac 2021}) 12... cxd4 {[%emt 0:08:08]} 13. exd5 {[%emt 0:08:34]} e5 {[%emt 0:19:43]} 14. a4 {[%emt 0:05:21] Inhibits b5.} Bd6 {[%emt 0:09:48]} 15. Ng5 $1 {[%emt 0:16:12]} h6 {[%emt 0:01:40]} 16. Nge4 {[%emt 0:00:25]} Ne8 {[%emt 0:02:33]} (16... Bb4 $11) 17. Nxd6 $16 {[%emt 0:04:32]} Nxd6 {[%emt 0:00:02]} 18. Ne4 {[%emt 0:03:03]} (18. Rf1 $142) 18... Nxe4 {[%emt 0:01:54]} 19. Bxe4 {[%emt 0:00:47]} Nc5 {[%emt 0:02:33]} 20. Bf5 {[%emt 0:06:34]} Rc7 {[%emt 0:00:24]} 21. b4 {[%emt 0:08:19]} (21. f4 $1 $16) 21... Nd7 $1 $14 {[%emt 0:00:48]} 22. b5 $36 {[%emt 0:00:21][%mdl 2048] White has good play.} Bb7 {[%emt 0:01:51]} 23. Ba3 {[%emt 0:02:49]} (23. Qe2 $14) 23... Nc5 {[%emt 0:00:50]} 24. f4 $1 {[%emt 0:01:09]} exf4 {[%emt 0:01:51]} 25. Rxd4 {[%emt 0:00:19]} Re8 $2 {[%emt 0:09:17]} (25... fxg3 $11 {and Black is okay.} 26. Rg4 (26. hxg3 g6 $14) (26. Bh7+ Kh8 $15) 26... Bc8) 26. Rxf4 $18 {[%emt 0:01:20]} Rce7 {[%emt 0:00:38]} 27. Raf1 {[%emt 0:00:37]} Re2 {[%emt 0:00:53]} 28. Bh7+ {[%emt 0:01:35]} (28. Qb1 $18 Bxd5 29. cxd5 Qxd5 30. R4f2) 28... Kh8 $11 {[%emt 0:00:04]} 29. Qf5 {[%emt 0:00:11]} (29. Qb1 $14 {keeps the upper hand.} Bxd5 30. cxd5 (30. Bxc5 $2 Rg2+ 31. Kh1 Ree2 $19) 30... Qxd5 31. R4f2 Rxf2 32. Rxf2) 29... Bc8 $17 {[%emt 0:01:12] Black has more active pieces.} 30. Qb1 {[%emt 0:01:10]} Bh3 {[%emt 0:00:30] Strongly threatening ...Rg2+.} 31. Rxf7 $2 {[%emt 0:00:59]} (31. Bxc5 $17 {was forced.} Bxf1 32. Bb4 (32. Rxf1 bxc5 33. Bd3 Rd2 $17)) 31... Bxf1 $19 {[%emt 0:00:34]} 32. Qg6 {[%emt 0:00:21] [#]} (32. Bb2 $142 Rxb2 33. Qxb2) 32... Ne6 $1 {[%emt 0:01:02]} 33. Kxf1 $11 {[%emt 0:00:45]} Ra2 $1 {[%emt 0:00:47] aiming for ...Qc8. Dancing on a razor blade.} 34. Bb4 $1 {[%emt 0:00:53] Black must now prevent Bc3.} (34. Rxa7 Rxa3 35. dxe6 Qd1+ 36. Kg2 Ra2+ 37. Kh3 Qf1+ 38. Kg4 Qe2+ 39. Kh4 Qxh2+ 40. Kg4 h5+ 41. Qxh5 Qxh5+ 42. Kxh5 Kxh7 $19) 34... Ra1+ {[%emt 0:00:19]} 35. Kg2 {[%emt 0:00:45]} Ra2+ {[%emt 0:00:10]} 36. Kf1 {[%emt 0:00:47] And now Bc3 would win.} Qc8 {[%emt 0:00:39]} 37. Qd3 {[%emt 0:00:31][%mdl 8192] [#]} ({Don't blunder} 37. dxe6 $2 Qxc4+ 38. Qd3 (38. Kg1 {is a self mate.} Qd4+ 39. Kh1 Qd1+) 38... Qxb4 $19) (37. c5 $11 Ra1+ 38. Kg2 (38. Be1 $2 Rxe1+ 39. Kxe1 Nf4+ 40. Qe4 Nxd5 $19) 38... Ra2+ 39. Kg1 Ra1+ 40. Kg2 Ra2+ 41. Kf1 Ra1+ 42. Kg2 (42. Be1 $2 Rxe1+ 43. Kxe1 Nf4+ 44. Qe4 Nxd5 $19)) 37... Nc5 $2 {[%emt 0:01:04]} (37... Nd4 $1 $19 {[%mdl 512] ( -> ...Qh3+)} 38. Bf5 Nxf5 39. Rxf5 {[#]} Re3 $3 {[%mdl 512]} 40. Qxe3 Qxf5+ 41. Kg1 Qc2) 38. Bxc5 $4 {[%emt 0:00:21][%mdl 8192]} (38. Qf5 $11) 38... Qh3+ {[%emt 0:00:08]} 39. Kg1 {[%emt 0:00:38]} Qg2# {Weighted Error Value: White=0.58/Black=0.60} 0-1

[Event "26th Womens ECCC 2022"]
[Site "Mayrhofen"]
[Date "2022.10.08"]
[Round "6.21"]
[White "Eric, Jovana"]
[Black "Ptacnikova, Lenka"]
[Result "1-0"]
[ECO "B47"]
[WhiteElo "2252"]
[BlackElo "2055"]
[Annotator "TA"]
[PlyCount "59"]
[EventDate "2022.10.03"]
[EventType "team-tourn"]
[EventCountry "AUT"]
[SourceTitle "playchess.com"]
[Source "ChessBase"]
[SourceQuality "1"]
[TimeControl "40/5400+30:1800+30"]

{[%evp 27,59,6,14,15,7,-2,7,8,89,82,107,102,102,94,159,136,211,200,186,154,162,128,179,189,184,181,177,177,256,255,279,274,360,368]} 1. e4 {[%emt 0:00:03]} c5 {[%emt 0:00:05]} 2. Nf3 {[%emt 0:00:06]} e6 {[%emt 0:00:08]} 3. d4 {[%emt 0:00:10]} cxd4 {[%emt 0:00:04]} 4. Nxd4 {[%emt 0:00:05]} Nc6 {[%emt 0:00:06]} 5. Nc3 {[%emt 0:00:05]} Qc7 {[%emt 0:00:09]} 6. Be2 {[%emt 0:00:34]} a6 {[%emt 0:00:11]} 7. O-O {[%emt 0:00:24]} Nf6 {[%emt 0:00:22]} 8. Be3 {[%emt 0:00:50]} Be7 {[%emt 0:01:15]} 9. f4 {[%emt 0:01:13]} d6 {[%emt 0:00:32]} 10. Kh1 {[%emt 0:00:52]} O-O {[%emt 0:02:23]} 11. Qe1 {[%emt 0:01:36]} Nxd4 {[%emt 0:01:42]} 12. Bxd4 {[%emt 0:00:06]} b5 {[%emt 0:01:17]} 13. a3 {[%emt 0:00:47]} Bb7 {[%emt 0:00:35]} 14. Qg3 {[%emt 0:00:35]} Rad8 {[%emt 0:06:19]} 15. Bf3 {[%emt 0:03:07] B85: Sicilian Scheveningen: 6 Be2 a6, lines with early Be3.} Bc6 {[%emt 0:02:46]} 16. Rad1 {[%emt 0:02:57]} Qb7 {[%emt 0:13:13]} 17. Rfe1 {[%emt 0:03:27][%cal Oc3d5] The position is equal.} Ne8 {[%emt 0:10:07] [#]} (17... Kh8 $11 {keeps the balance.}) 18. Nd5 $1 $16 {[%emt 0:04:50] [#] White is much more active.} g6 $146 {[%emt 0:10:17]} (18... exd5 $2 19. exd5 Qc7 20. dxc6 $18) (18... Qd7 19. Nxe7+) ({Predecessor:} 18... Kh8 19. Nxe7 Qxe7 20. Bc3 Qc7 21. Qh4 f6 22. Rd3 Kg8 23. f5 e5 24. Bh5 d5 {1-0 (66) Andrijevic,M (2383)-Jovanovic,Z (2389) Belgrade 2004}) 19. Nxe7+ {[%emt 0:03:34]} Qxe7 {[%emt 0:00:03]} 20. Bc3 {[%emt 0:02:40]} f6 {[%emt 0:05:17]} ({Black should play} 20... Qc7) 21. f5 {[%emt 0:02:18]} g5 {[%emt 0:04:13]} (21... Qf7 $16 22. Ba5 Rb8) 22. fxe6 $18 {[%emt 0:02:01]} Qxe6 {[%emt 0:00:25]} 23. Ba5 {[%emt 0:11:48]} Rb8 {[%emt 0:01:30]} 24. Bh5 $36 {[%emt 0:02:15][%mdl 2048] White is in control.} Qe5 {[%emt 0:05:29]} (24... Bxe4 $16 {was necessary.} 25. Bf3 f5) 25. Qb3+ {[%emt 0:00:56]} Kh8 {[%emt 0:01:04]} 26. Bc3 {[%emt 0:00:23] This bishop pair is nice.} Qe7 {[%emt 0:00:22]} 27. Qb4 {[%emt 0:05:25]} a5 {[%emt 0:05:39]} (27... Ba8 {is a better defense.} 28. a4 Qb7 29. axb5 axb5) 28. Qxa5 {[%emt 0:02:42]} Ng7 {[%emt 0:04:29]} 29. Bf3 {[%emt 0:01:17][%cal Oe4e5] Black must now prevent e5!} Qe6 {[%emt 0:02:26] Against e5} 30. Qc7 {[%emt 0:04:46][%csl LRc6,LRd6] White took control after the opening.  Weighted Error Value: White=0.06 (flawless) /Black=0.36} 1-0

[Event "26th Womens ECCC 2022"]
[Site "Mayrhofen"]
[Date "2022.10.08"]
[Round "6.22"]
[White "Johannsdottir, Johanna Bjorg"]
[Black "Blagojevic, Tijana"]
[Result "0-1"]
[ECO "C50"]
[WhiteElo "1964"]
[BlackElo "2266"]
[Annotator "TA"]
[PlyCount "120"]
[EventDate "2022.10.03"]
[EventType "team-tourn"]
[EventCountry "AUT"]
[SourceTitle "playchess.com"]
[Source "ChessBase"]
[SourceQuality "1"]
[TimeControl "40/5400+30:1800+30"]

{[%evp 9,120,16,24,11,23,13,16,16,13,10,12,0,3,8,10,23,20,0,0,0,0,0,0,-4,0,-20,-3,-43,-43,-50,-40,-48,-35,-50,-54,-59,-66,-70,-70,-86,-62,-109,-64,-59,-60,-72,-52,-61,-45,-66,-63,-102,-72,-81,-77,-63,-14,-14,-8,-66,-50,-76,-78,-93,-85,-102,-68,-57,-59,-68,-28,-69,-62,-94,-28,-47,0,-68,-17,-39,0,-75,-27,-57,-65,-61,-75,-108,-79,-91,-48,-46,-31,-112,-113,-356,-339,-594,-481,-386,-106,-356,-357,-356,-330,-29991,-29992,-29992,-29993,-29996,-29990,-29997,-29998]} 1. e4 {[%emt 0:00:02]} e5 {[%emt 0:00:05]} 2. Nf3 {[%emt 0:00:03]} Nc6 {[%emt 0:00:05]} 3. Bc4 {[%emt 0:00:03]} Bc5 {[%emt 0:00:05]} 4. d3 {[%emt 0:00:48]} Nf6 {[%emt 0:00:13]} 5. a4 {[%emt 0:00:10]} a6 {[%emt 0:02:06]} 6. Nbd2 {[%emt 0:00:53] C50: Hungarian Defence and Giuoco Pianissimo.} O-O {[%emt 0:01:04]} 7. O-O {[%emt 0:00:04]} d6 {[%emt 0:00:39]} 8. h3 {[%emt 0:00:08] The position is equal.} Ne7 {[%emt 0:03:07]} 9. c3 {[%emt 0:01:42]} Ng6 {[%emt 0:00:52]} 10. d4 {[%emt 0:05:06]} Ba7 {[%emt 0:06:33]} 11. Re1 {[%emt 0:00:54]} exd4 {[%emt 0:04:25] seems to push 11...c6 aside.} 12. cxd4 {[%emt 0:00:39]} d5 {[%emt 0:00:33] [#]} 13. Bb3 $146 {[%emt 0:02:35]} ({Predecessor:} 13. exd5 Nxd5 14. Ne4 c6 15. a5 h6 16. Qb3 Nh4 17. Nc5 Nxf3+ 18. Qxf3 Bxc5 19. dxc5 {½-½ (60) Alekseenko,K (2710)-Ponkratov,P (2659) Ufa 2021}) 13... dxe4 {[%emt 0:00:42]} 14. Nxe4 {[%emt 0:00:06]} Nxe4 {[%emt 0:00:38]} 15. Rxe4 {[%emt 0:00:06]} Bf5 {[%emt 0:01:16]} 16. Re2 {[%emt 0:02:13]} Qd7 {[%emt 0:04:02]} 17. Be3 {[%emt 0:06:31]} Rad8 {[%emt 0:05:53]} 18. Qe1 {[%emt 0:07:20]} Bd3 {[%emt 0:05:53]} 19. Rd2 {[%emt 0:00:41]} Be4 {[%emt 0:00:05] [#] And now ...Bxf3 would win.} 20. Ne5 {[%emt 0:03:38]} Qf5 {[%emt 0:00:18]} 21. f3 {[%emt 0:04:41]} Bd5 {[%emt 0:01:59]} 22. Bc2 {[%emt 0:02:25]} Qf6 {[%emt 0:00:05]} 23. Nxg6 {[%emt 0:01:31]} hxg6 {[%emt 0:01:22]} 24. Qg3 {[%emt 0:00:37]} Rde8 {[%emt 0:05:27]} 25. Qf4 {[%emt 0:06:08]} (25. Qg5 $15) 25... Re7 {[%emt 0:15:26]} (25... Qe7 {with more complications.} 26. Re2 c6 27. b3 Qb4) 26. Qxf6 {[%emt 0:02:21]} gxf6 {[%emt 0:00:04]} 27. Bf2 {[%emt 0:00:09]} Rd8 {[%emt 0:03:09]} 28. b4 {[%emt 0:02:12]} Red7 {[%emt 0:00:23] Black is more active.} 29. h4 {[%emt 0:02:18]} Bb6 {[%emt 0:02:32]} 30. h5 {[%emt 0:02:42]} Kg7 {[%emt 0:00:08]} 31. a5 {[%emt 0:01:53]} Ba7 {[%emt 0:00:03]} 32. Re1 {[%emt 0:02:59]} Bc4 {[%emt 0:03:06]} (32... gxh5 $15 33. Bf5 Rd6) 33. hxg6 $11 {[%emt 0:00:53]} fxg6 {[%emt 0:00:04]} 34. Re4 {[%emt 0:01:09]} ({White should try} 34. g4 $1 $11) 34... Bf7 {[%emt 0:01:57]} 35. Rg4 {[%emt 0:08:30]} c6 {[%emt 0:03:49]} 36. Rd1 {[%emt 0:02:35][%cal Od4d5]} Bb8 {[%emt 0:00:19]} 37. Re1 {[%emt 0:02:21]} Bd6 {[%emt 0:01:12]} 38. d5 {[%emt 0:08:10]} cxd5 {[%emt 0:00:06]} 39. Bb6 {[%emt 0:00:33]} Rh8 {[%emt 0:03:07]} 40. Rd1 {[%emt 0:01:52]} Re7 {[%emt 0:02:51]} 41. Kf2 {[%emt 0:31:32][%cal Oc2e4] Inhibits Re2+.} Rhe8 {[%emt 0:43:31]} (41... g5 $17 42. Rgd4 Rhe8) 42. Bd3 $1 {[%emt 0:00:52]} Rh8 {[%emt 0:01:44]} (42... Rc8 $15 {feels stronger.}) 43. Rc1 {[%emt 0:02:52]} (43. Bc2 $11) 43... Ree8 {[%emt 0:02:24]} (43... g5 $15 44. Bc5 Bxc5+ 45. bxc5 Bg6) 44. Bf5 {[%emt 0:04:40]} Re7 {[%emt 0:00:00]} 45. Bd3 {[%emt 0:00:00]} Rh5 {[%emt 0:00:00]} (45... g5 $17 {Threatens to win with ...Be6.} 46. Bc5 Bxc5+ 47. Rxc5 Be6) 46. Bb1 {[%emt 0:00:00]} Be5 {[%emt 0:00:00]} 47. b5 {[%emt 0:00:00]} axb5 {[%emt 0:00:00]} 48. Rb4 {[%emt 0:00:00]} Be8 {[%emt 0:00:00]} 49. Bd3 {[%emt 0:00:00]} Bd6 {[%emt 0:00:00]} 50. Rbb1 {[%emt 0:00:00]} d4 {[%emt 0:00:00] ...Bf4 is the strong threat.} 51. Bd8 {[%emt 0:00:00]} ({White should play} 51. Re1 $15) 51... Re6 {[%emt 0:00:00] Strongly threatening ...Bf4.} 52. Be4 $2 {[%emt 0:00:00]} (52. Bc7 $17) 52... Bf4 $19 {[%emt 0:02:09]} 53. Rc2 $2 {[%emt 0:00:22]} (53. Bxb7 {was worth a try.} Bxc1 54. Rxc1) 53... Be3+ {[%emt 0:00:20]} 54. Ke2 {[%emt 0:00:49]} Bc6 $2 {[%emt 0:03:46]} (54... f5 $19 {is more deadly.} 55. g4 Rh6 56. gxf5 gxf5 57. Bxf5 Bg5+ 58. Bxe6 Rxe6+ 59. Kd3 Bxd8 60. Rg2+ Kf8 61. Kxd4 Bxa5) 55. a6 $2 {[%emt 0:03:00]} (55. Kd3 $17) 55... Bxe4 {[%emt 0:00:39]} 56. Rc7+ {[%emt 0:00:37]} Kh6 {[%emt 0:00:39]} 57. a7 $2 {[%emt 0:05:02] [#]} (57. fxe4 $19 bxa6 58. Kd3) 57... Bxb1 {[%emt 0:00:04] Black mates.} 58. f4 {[%emt 0:00:53]} Bxf4+ {[%emt 0:00:39]} 59. Kf3 {[%emt 0:02:22]} Bxc7 {[%emt 0:00:06]} 60. a8=Q {[%emt 0:00:07]} Re3+ {[%emt 0:00:22] Weighted Error Value: White=0.35/Black=0.26 (precise)} 0-1